[Event "*** Titled Tuesday Blitz"]
[Site "Chess.com"]
[Date "2019.03.05"]
[Round "6"]
[White "Chessmatus"]
[Black "zeitnot2006"]
[Result "0-1"]
[WhiteElo "2283"]
[BlackElo "2172"]
[TimeControl "180+2"]
[EndTime "14:26:13 PST"]
[Termination "zeitnot2006 won by resignation"]

1. d4 {[%clk 0:03:01.9]} 1... g6 {[%clk 0:03:00]} 2. c4 {[%clk 0:03:02.8]} 2...
Bg7 {[%clk 0:02:59.9]} 3. Nc3 {[%clk 0:03:03.8]} 3... Nf6 {[%clk 0:02:57.8]} 4.
e4 {[%clk 0:03:03.1]} 4... d6 {[%clk 0:02:58.1]} 5. Be2 {[%clk 0:03:02.3]} 5...
O-O {[%clk 0:02:57.4]} 6. Be3 {[%clk 0:03:03.4]} 6... Na6 {[%clk 0:02:54.4]} 7.
Nf3 {[%clk 0:03:00.6]} 7... Ng4 {[%clk 0:02:46.8]} 8. Bg5 {[%clk 0:02:58.3]}
8... h6 {[%clk 0:02:47.3]} 9. Bh4 {[%clk 0:02:53.8]} 9... Qe8 {[%clk 0:02:36]}
10. h3 {[%clk 0:02:49.1]} 10... Nf6 {[%clk 0:02:33.3]} 11. Bg3 {[%clk
0:02:50.3]} 11... Nh5 {[%clk 0:02:29.8]} 12. Bh2 {[%clk 0:02:51.2]} 12... e5
{[%clk 0:02:27.7]} 13. O-O {[%clk 0:02:35.8]} 13... Nf4 {[%clk 0:02:16.7]} 14.
d5 {[%clk 0:02:25.1]} 14... f5 {[%clk 0:02:12.1]} 15. Re1 {[%clk 0:02:24.2]}
15... Nc5 {[%clk 0:02:09]} 16. Bf1 {[%clk 0:02:23.2]} 16... fxe4 {[%clk
0:02:06.3]} 17. Nxe4 {[%clk 0:02:22.3]} 17... Nxe4 {[%clk 0:02:05.9]} 18. Rxe4
{[%clk 0:02:23.4]} 18... Bf5 {[%clk 0:02:01.7]} 19. Re1 {[%clk 0:02:24.2]} 19...
Qf7 {[%clk 0:02:00.5]} 20. Nd2 {[%clk 0:01:38.2]} 20... g5 {[%clk 0:01:48.3]}
21. Ne4 {[%clk 0:01:36.3]} 21... Qg6 {[%clk 0:01:46]} 22. f3 {[%clk 0:01:31.3]}
22... h5 {[%clk 0:01:45.2]} 23. Kh1 {[%clk 0:01:02.1]} 23... g4 {[%clk
0:01:40.5]} 24. hxg4 {[%clk 0:00:58.5]} 24... hxg4 {[%clk 0:01:41.4]} 25. Ng3
{[%clk 0:00:43.9]} 25... gxf3 {[%clk 0:01:11.9]} 26. gxf3 {[%clk 0:00:44.9]}
26... Bh3 {[%clk 0:01:09.7]} 27. Qd2 {[%clk 0:00:36.9]} 27... Bxf1 {[%clk
0:00:52.7]} 28. Rxf1 {[%clk 0:00:37.9]} 28... Bh6 {[%clk 0:00:51]} 29. Ne4
{[%clk 0:00:23.8]} 29... Kh8 {[%clk 0:00:46.4]} 30. Rg1 {[%clk 0:00:24]} 30...
Qh5 {[%clk 0:00:44.5]} 31. Qf2 {[%clk 0:00:20]} 31... Nh3 {[%clk 0:00:43.7]} 32.
Qg3 {[%clk 0:00:19.4]} 32... Nxg1 {[%clk 0:00:41.3]} 33. Rxg1 {[%clk 0:00:18.7]}
33... Qxf3+ {[%clk 0:00:42.3]} 34. Qxf3 {[%clk 0:00:20.1]} 34... Rxf3 {[%clk
0:00:43.8]} 35. Rg6 {[%clk 0:00:21.2]} 35... Kh7 {[%clk 0:00:33.7]} 36. Re6
{[%clk 0:00:22.2]} 36... Raf8 {[%clk 0:00:31]} 37. c5 {[%clk 0:00:21.5]} 37...
dxc5 {[%clk 0:00:26.1]} 38. Nxc5 {[%clk 0:00:21.6]} 38... Be3 {[%clk 0:00:19.2]}
39. Nd7 {[%clk 0:00:21.3]} 39... Rf1+ {[%clk 0:00:16.3]} 40. Kg2 {[%clk
0:00:22.1]} 40... R8f2+ {[%clk 0:00:16.4]} 41. Kh3 {[%clk 0:00:22.3]} 41... Rf3+
{[%clk 0:00:16.7]} 42. Kg4 {[%clk 0:00:22.7]} 42... Rf7 {[%clk 0:00:13.4]} 43.
Bxe5 {[%clk 0:00:22.9]} 43... Rxd7 {[%clk 0:00:13.3]} 44. Bf6 {[%clk 0:00:21.1]}
44... Bh6 {[%clk 0:00:12.7]} 45. Re8 {[%clk 0:00:20.9]} 45... Rxf6 {[%clk
0:00:12.8]} 0-1

[Event "*** Titled Tuesday Blitz"]
[Site "Chess.com"]
[Date "2019.03.05"]
[Round "6"]
[White "Man-Chuk"]
[Black "KhalilMousavi77"]
[Result "0-1"]
[WhiteElo "2771"]
[BlackElo "2687"]
[TimeControl "180+2"]
[EndTime "14:26:25 PST"]
[Termination "KhalilMousavi77 won on time"]

1. Nf3 {[%clk 0:03:01.9]} 1... Nf6 {[%clk 0:03:00.3]} 2. g3 {[%clk 0:03:02.7]}
2... e6 {[%clk 0:02:59.8]} 3. Bg2 {[%clk 0:03:03.7]} 3... d5 {[%clk 0:03:01.6]}
4. c4 {[%clk 0:03:03.9]} 4... Be7 {[%clk 0:03:02.4]} 5. O-O {[%clk 0:03:03.8]}
5... O-O {[%clk 0:03:03.8]} 6. b3 {[%clk 0:02:49.2]} 6... d4 {[%clk 0:03:00]} 7.
e3 {[%clk 0:02:35.7]} 7... c5 {[%clk 0:02:56.4]} 8. exd4 {[%clk 0:02:35.6]} 8...
cxd4 {[%clk 0:02:57.3]} 9. d3 {[%clk 0:02:33.7]} 9... Nc6 {[%clk 0:02:57.1]} 10.
Re1 {[%clk 0:02:35]} 10... Re8 {[%clk 0:02:56.8]} 11. Ba3 {[%clk 0:02:33.4]}
11... a5 {[%clk 0:02:31.5]} 12. Bxe7 {[%clk 0:02:25.6]} 12... Qxe7 {[%clk
0:02:31.2]} 13. Nbd2 {[%clk 0:02:25.8]} 13... e5 {[%clk 0:02:29.4]} 14. h3
{[%clk 0:01:59]} 14... Bf5 {[%clk 0:02:23.4]} 15. Nxe5 {[%clk 0:01:05.4]} 15...
Nxe5 {[%clk 0:02:19.3]} 16. f4 {[%clk 0:01:06.4]} 16... Nfd7 {[%clk 0:01:57]}
17. fxe5 {[%clk 0:01:04.4]} 17... Nc5 {[%clk 0:01:57.8]} 18. Nf3 {[%clk
0:00:47.9]} 18... Nxd3 {[%clk 0:01:57.5]} 19. Re2 {[%clk 0:00:43.8]} 19... h6
{[%clk 0:01:39.2]} 20. Rd2 {[%clk 0:00:35.6]} 20... Nxe5 {[%clk 0:01:34.7]} 21.
Nxd4 {[%clk 0:00:33.8]} 21... Bg6 {[%clk 0:01:35.6]} 22. Kh2 {[%clk 0:00:33.3]}
22... Rad8 {[%clk 0:01:29.6]} 23. Nb5 {[%clk 0:00:34.3]} 23... Nd3 {[%clk
0:01:26.9]} 24. Qf3 {[%clk 0:00:26.8]} 24... Ne1 {[%clk 0:01:25]} 25. Qf2 {[%clk
0:00:12.5]} 25... Rxd2 {[%clk 0:01:22.6]} 26. Qxd2 {[%clk 0:00:14.4]} 26... Qe2
{[%clk 0:01:18.5]} 27. Qxe2 {[%clk 0:00:13.8]} 27... Rxe2 {[%clk 0:01:20.4]} 28.
Rxe1 {[%clk 0:00:15.3]} 28... Rxe1 {[%clk 0:01:21.6]} 29. Bxb7 {[%clk
0:00:17.2]} 29... Re2+ {[%clk 0:01:18.6]} 30. Kg1 {[%clk 0:00:18.4]} 30... Rxa2
{[%clk 0:01:19.5]} 31. c5 {[%clk 0:00:19.6]} 31... Rc2 {[%clk 0:01:17.7]} 32. c6
{[%clk 0:00:19.4]} 32... Be4 {[%clk 0:01:14]} 33. Nd4 {[%clk 0:00:18.6]} 33...
Rd2 {[%clk 0:01:12.1]} 34. Nb5 {[%clk 0:00:16]} 34... Rg2+ {[%clk 0:00:56.2]}
35. Kf1 {[%clk 0:00:16.9]} 35... Rxg3 {[%clk 0:00:56.1]} 36. Ba8 {[%clk
0:00:07.8]} 36... Bxc6 {[%clk 0:00:27.7]} 37. Bxc6 {[%clk 0:00:08.4]} 37... Rxb3
{[%clk 0:00:29.3]} 38. Nd4 {[%clk 0:00:04.6]} 38... Rb4 {[%clk 0:00:26.8]} 39.
Nf5 {[%clk 0:00:03]} 39... a4 {[%clk 0:00:26.6]} 40. Ke2 {[%clk 0:00:04.2]}
40... a3 {[%clk 0:00:27.3]} 41. Bd5 {[%clk 0:00:05.1]} 41... Rb5 {[%clk
0:00:28.6]} 0-1

[Event "*** Titled Tuesday Blitz"]
[Site "Chess.com"]
[Date "2019.03.05"]
[Round "6"]
[White "kuli4ik"]
[Black "Gr3egor"]
[Result "1-0"]
[WhiteElo "2767"]
[BlackElo "2515"]
[TimeControl "180+2"]
[EndTime "14:26:29 PST"]
[Termination "kuli4ik won by resignation"]

1. d4 {[%clk 0:03:01.9]} 1... Nf6 {[%clk 0:03:00.9]} 2. Bg5 {[%clk 0:03:02.4]}
2... d5 {[%clk 0:03:01.2]} 3. e3 {[%clk 0:03:02.6]} 3... c5 {[%clk 0:02:59.2]}
4. c3 {[%clk 0:03:03.5]} 4... Qb6 {[%clk 0:02:54.5]} 5. Qb3 {[%clk 0:03:03.4]}
5... e6 {[%clk 0:02:51.5]} 6. Nd2 {[%clk 0:03:00]} 6... Nc6 {[%clk 0:02:52.6]}
7. Ngf3 {[%clk 0:03:00.1]} 7... c4 {[%clk 0:02:51.4]} 8. Qc2 {[%clk 0:02:59.7]}
8... Be7 {[%clk 0:02:48.8]} 9. b3 {[%clk 0:02:55.1]} 9... cxb3 {[%clk
0:02:50.2]} 10. axb3 {[%clk 0:02:54.6]} 10... Bd7 {[%clk 0:02:51.4]} 11. Bd3
{[%clk 0:02:52.1]} 11... h6 {[%clk 0:02:50.9]} 12. Bh4 {[%clk 0:02:50.2]} 12...
Rc8 {[%clk 0:02:51.1]} 13. Qa2 {[%clk 0:02:44.2]} 13... O-O {[%clk 0:02:40]} 14.
O-O {[%clk 0:02:42.5]} 14... g5 {[%clk 0:02:06.4]} 15. Bg3 {[%clk 0:02:41.5]}
15... Nh5 {[%clk 0:02:06.7]} 16. Rfc1 {[%clk 0:02:28.5]} 16... Nxg3 {[%clk
0:01:55.3]} 17. hxg3 {[%clk 0:02:27.9]} 17... Kg7 {[%clk 0:01:55.8]} 18. b4
{[%clk 0:02:20.5]} 18... g4 {[%clk 0:01:25.9]} 19. Ne1 {[%clk 0:02:15.7]} 19...
a6 {[%clk 0:01:10.7]} 20. Nb3 {[%clk 0:02:11.5]} 20... h5 {[%clk 0:01:11.7]} 21.
Nc5 {[%clk 0:02:11.5]} 21... Qc7 {[%clk 0:01:07.1]} 22. e4 {[%clk 0:02:09.8]}
22... Bxc5 {[%clk 0:01:03.5]} 23. bxc5 {[%clk 0:02:09]} 23... dxe4 {[%clk
0:01:04.1]} 24. Bxe4 {[%clk 0:02:10.9]} 24... f5 {[%clk 0:01:05.2]} 25. Bxc6
{[%clk 0:01:58.4]} 25... Bxc6 {[%clk 0:01:07.1]} 26. Nd3 {[%clk 0:01:59.7]}
26... h4 {[%clk 0:00:46.4]} 27. Nf4 {[%clk 0:01:59.5]} 27... Rce8 {[%clk
0:00:42.8]} 28. Re1 {[%clk 0:01:58.3]} 28... hxg3 {[%clk 0:00:39]} 29. fxg3
{[%clk 0:01:57.1]} 29... Bd5 {[%clk 0:00:36.2]} 30. Qc2 {[%clk 0:01:40.3]} 30...
Be4 {[%clk 0:00:34.8]} 31. Rxe4 {[%clk 0:01:40]} 31... fxe4 {[%clk 0:00:35.7]}
32. Qxe4 {[%clk 0:01:41.3]} 32... Rxf4 {[%clk 0:00:11.3]} 33. Qxf4 {[%clk
0:01:28.5]} 33... Qxf4 {[%clk 0:00:10.4]} 34. gxf4 {[%clk 0:01:29.6]} 34... Kf6
{[%clk 0:00:11.5]} 35. Kf2 {[%clk 0:01:29.4]} 35... Rc8 {[%clk 0:00:08.1]} 36.
Rb1 {[%clk 0:01:28.4]} 36... Rc7 {[%clk 0:00:08.9]} 37. Kg3 {[%clk 0:01:29.2]}
37... Kf5 {[%clk 0:00:10.3]} 38. Re1 {[%clk 0:01:27.2]} 38... b6 {[%clk
0:00:09.4]} 39. Re5+ {[%clk 0:01:26]} 39... Kf6 {[%clk 0:00:10.9]} 40. cxb6
{[%clk 0:01:21.5]} 40... Rxc3+ {[%clk 0:00:12.8]} 41. Kxg4 {[%clk 0:01:22.5]}
41... Rb3 {[%clk 0:00:14.1]} 42. d5 {[%clk 0:01:21.9]} 42... exd5 {[%clk
0:00:14.7]} 43. Rxd5 {[%clk 0:01:23]} 43... Rxb6 {[%clk 0:00:16.4]} 44. g3
{[%clk 0:01:22.7]} 44... Rc6 {[%clk 0:00:15.4]} 45. Rh5 {[%clk 0:01:22.7]} 45...
Kg6 {[%clk 0:00:16.8]} 46. Rh8 {[%clk 0:01:13.9]} 46... Rc1 {[%clk 0:00:15]} 47.
Ra8 {[%clk 0:01:14.3]} 47... Ra1 {[%clk 0:00:16.1]} 48. Ra7 {[%clk 0:01:12.6]}
48... Kf6 {[%clk 0:00:15.6]} 49. Rb7 {[%clk 0:01:13.6]} 49... a5 {[%clk
0:00:16]} 50. Rb6+ {[%clk 0:01:14.5]} 50... Ke7 {[%clk 0:00:15.9]} 51. Kg5
{[%clk 0:01:15.6]} 51... a4 {[%clk 0:00:17.1]} 52. g4 {[%clk 0:01:14.8]} 52...
a3 {[%clk 0:00:18.3]} 53. Ra6 {[%clk 0:01:16.3]} 53... a2 {[%clk 0:00:15.2]} 54.
Ra7+ {[%clk 0:01:15.9]} 54... Ke8 {[%clk 0:00:14.4]} 55. f5 {[%clk 0:01:17]}
55... Kd8 {[%clk 0:00:13.1]} 56. f6 {[%clk 0:01:15.7]} 56... Ke8 {[%clk
0:00:14.5]} 57. f7+ {[%clk 0:01:08.9]} 57... Kf8 {[%clk 0:00:13.8]} 58. Kg6
{[%clk 0:01:07.7]} 1-0

[Event "*** Titled Tuesday Blitz"]
[Site "Chess.com"]
[Date "2019.03.05"]
[Round "6"]
[White "toog"]
[Black "witcher8"]
[Result "0-1"]
[WhiteElo "2235"]
[BlackElo "2354"]
[TimeControl "180+2"]
[EndTime "14:26:30 PST"]
[Termination "witcher8 won by resignation"]

1. e4 {[%clk 0:03:01.9]} 1... c6 {[%clk 0:03:00.9]} 2. d4 {[%clk 0:02:57.4]}
2... d5 {[%clk 0:03:02.8]} 3. Nc3 {[%clk 0:02:57.8]} 3... dxe4 {[%clk
0:03:03.3]} 4. Nxe4 {[%clk 0:02:59.1]} 4... Bf5 {[%clk 0:03:04.9]} 5. Ng3 {[%clk
0:02:59.8]} 5... Bg6 {[%clk 0:03:06]} 6. h4 {[%clk 0:03:01]} 6... h6 {[%clk
0:03:05.6]} 7. Nf3 {[%clk 0:03:02.1]} 7... Nd7 {[%clk 0:03:04.1]} 8. h5 {[%clk
0:03:02.5]} 8... Bh7 {[%clk 0:03:04.5]} 9. Bd3 {[%clk 0:03:04.2]} 9... Bxd3
{[%clk 0:03:04.4]} 10. Qxd3 {[%clk 0:03:06.1]} 10... e6 {[%clk 0:03:05.5]} 11.
Bd2 {[%clk 0:03:06.7]} 11... Ngf6 {[%clk 0:03:03.7]} 12. O-O-O {[%clk
0:03:07.7]} 12... Be7 {[%clk 0:03:00.2]} 13. Ne4 {[%clk 0:03:08.4]} 13... Nxe4
{[%clk 0:02:55.9]} 14. Qxe4 {[%clk 0:03:10.3]} 14... Nf6 {[%clk 0:02:57.6]} 15.
Qe2 {[%clk 0:03:11.2]} 15... Qd5 {[%clk 0:02:34.2]} 16. Kb1 {[%clk 0:03:11.8]}
16... Qb5 {[%clk 0:02:32]} 17. Qxb5 {[%clk 0:02:58.5]} 17... cxb5 {[%clk
0:02:32.7]} 18. c3 {[%clk 0:02:58]} 18... O-O {[%clk 0:02:23.6]} 19. Ne5 {[%clk
0:02:55.1]} 19... Bd6 {[%clk 0:02:17.1]} 20. Bf4 {[%clk 0:02:48.6]} 20... Ne4
{[%clk 0:02:16.2]} 21. Rhf1 {[%clk 0:02:46.3]} 21... f6 {[%clk 0:02:04.5]} 22.
Ng6 {[%clk 0:02:45.9]} 22... Bxf4 {[%clk 0:02:04.3]} 23. Nxf4 {[%clk 0:02:46.3]}
23... Rfe8 {[%clk 0:02:05.1]} 24. f3 {[%clk 0:02:41.3]} 24... Ng3 {[%clk
0:02:03.8]} 25. Rfe1 {[%clk 0:02:41.3]} 25... e5 {[%clk 0:02:02.3]} 26. dxe5
{[%clk 0:02:40.7]} 26... fxe5 {[%clk 0:02:03.7]} 27. Nd5 {[%clk 0:02:40.3]}
27... Rad8 {[%clk 0:02:01.1]} 28. Nc7 {[%clk 0:02:37.3]} 28... Rxd1+ {[%clk
0:01:55.4]} 29. Rxd1 {[%clk 0:02:37.3]} 29... Re7 {[%clk 0:01:56.3]} 30. Nxb5
{[%clk 0:02:36]} 30... a6 {[%clk 0:01:54.4]} 31. Rd8+ {[%clk 0:02:32.3]} 31...
Kh7 {[%clk 0:01:54.5]} 32. Nd6 {[%clk 0:02:33.4]} 32... Nxh5 {[%clk 0:01:55.6]}
33. Rb8 {[%clk 0:02:26.9]} 33... Nf4 {[%clk 0:01:45.3]} 34. g3 {[%clk
0:02:24.2]} 34... Ne2 {[%clk 0:01:44.3]} 35. g4 {[%clk 0:02:15.2]} 35... Ng1
{[%clk 0:01:32.8]} 36. Rxb7 {[%clk 0:02:01.6]} 36... Rxb7 {[%clk 0:01:30.1]} 37.
Nxb7 {[%clk 0:02:03.5]} 37... Nxf3 {[%clk 0:01:31.6]} 38. Kc2 {[%clk 0:02:03.9]}
38... Kg6 {[%clk 0:01:27.8]} 39. Kd3 {[%clk 0:02:04.3]} 39... Kg5 {[%clk
0:01:29.3]} 40. Ke4 {[%clk 0:02:01]} 40... Kxg4 {[%clk 0:01:30.2]} 41. c4 {[%clk
0:01:54.7]} 41... h5 {[%clk 0:01:24]} 42. c5 {[%clk 0:01:55.3]} 42... Nd4 {[%clk
0:01:24.8]} 43. Kxe5 {[%clk 0:01:55.9]} 43... Nc6+ {[%clk 0:01:26.3]} 44. Kd5
{[%clk 0:01:55.7]} 44... Na7 {[%clk 0:01:27.3]} 45. Nd6 {[%clk 0:01:53.2]} 45...
h4 {[%clk 0:01:27.4]} 46. Ne4 {[%clk 0:01:52.3]} 46... Kf3 {[%clk 0:01:13.6]}
47. a4 {[%clk 0:01:47.8]} 47... h3 {[%clk 0:01:14.6]} 48. Ng5+ {[%clk
0:01:48.4]} 48... Kg2 {[%clk 0:01:15.1]} 49. Nxh3 {[%clk 0:01:48.9]} 49... Kxh3
{[%clk 0:01:15.9]} 50. c6 {[%clk 0:01:50.1]} 50... g5 {[%clk 0:01:16.3]} 51. c7
{[%clk 0:01:47.4]} 51... g4 {[%clk 0:01:17.2]} 52. Kc5 {[%clk 0:01:48.4]} 52...
g3 {[%clk 0:01:16.1]} 53. Kb6 {[%clk 0:01:49.8]} 53... Nc8+ {[%clk 0:01:17.2]}
54. Kb7 {[%clk 0:01:51.1]} 54... Ne7 {[%clk 0:01:17.7]} 55. Kxa6 {[%clk
0:01:48.8]} 55... g2 {[%clk 0:01:18.2]} 56. b4 {[%clk 0:01:49.4]} 56... g1=Q
{[%clk 0:01:19.2]} 57. b5 {[%clk 0:01:50.5]} 57... Qc5 {[%clk 0:00:27]} 58. b6
{[%clk 0:01:46.2]} 58... Qc6 {[%clk 0:00:23.6]} 59. a5 {[%clk 0:01:45.4]} 59...
Nd5 {[%clk 0:00:15.5]} 60. Ka7 {[%clk 0:01:30.4]} 60... Nxc7 {[%clk 0:00:14.9]}
61. b7 {[%clk 0:01:30.2]} 61... Qa6+ {[%clk 0:00:12.9]} 62. Kb8 {[%clk 0:01:31]}
62... Qxa5 {[%clk 0:00:14]} 63. Kc8 {[%clk 0:01:31.9]} 63... Na6 {[%clk
0:00:15.2]} 64. b8=Q {[%clk 0:01:32.9]} 64... Nxb8 {[%clk 0:00:16]} 65. Kxb8
{[%clk 0:01:34.8]} 0-1

[Event "*** Titled Tuesday Blitz"]
[Site "Chess.com"]
[Date "2019.03.05"]
[Round "6"]
[White "OparinGrigoriy"]
[Black "Margency"]
[Result "1-0"]
[WhiteElo "2969"]
[BlackElo "2595"]
[TimeControl "180+2"]
[EndTime "14:26:34 PST"]
[Termination "OparinGrigoriy won by resignation"]

1. Nf3 {[%clk 0:03:01.9]} 1... Nf6 {[%clk 0:02:58.8]} 2. g3 {[%clk 0:03:03.8]}
2... g6 {[%clk 0:02:59.6]} 3. Bg2 {[%clk 0:03:05.7]} 3... Bg7 {[%clk 0:03:01.2]}
4. c4 {[%clk 0:03:07.6]} 4... d5 {[%clk 0:03:01.8]} 5. cxd5 {[%clk 0:03:09.5]}
5... Nxd5 {[%clk 0:03:03.1]} 6. Nc3 {[%clk 0:03:11.4]} 6... Nb6 {[%clk
0:03:04.2]} 7. d4 {[%clk 0:03:12]} 7... Nc6 {[%clk 0:03:04.8]} 8. d5 {[%clk
0:03:12.4]} 8... Bxc3+ {[%clk 0:03:04.3]} 9. bxc3 {[%clk 0:03:14.3]} 9... Qxd5
{[%clk 0:03:05.5]} 10. Bd2 {[%clk 0:03:14]} 10... Nc4 {[%clk 0:02:57.2]} 11. Bh6
{[%clk 0:03:14.6]} 11... Qxd1+ {[%clk 0:02:52.5]} 12. Rxd1 {[%clk 0:03:16.5]}
12... f6 {[%clk 0:02:53.1]} 13. O-O {[%clk 0:03:12.6]} 13... Bd7 {[%clk
0:02:39.4]} 14. Nd4 {[%clk 0:02:59.5]} 14... O-O-O {[%clk 0:02:33.4]} 15. Rfe1
{[%clk 0:02:47.2]} 15... Rhe8 {[%clk 0:02:25.2]} 16. h4 {[%clk 0:02:45.4]} 16...
e5 {[%clk 0:02:17]} 17. Nxc6 {[%clk 0:02:40.8]} 17... Bxc6 {[%clk 0:02:17.3]}
18. Bh3+ {[%clk 0:02:41.8]} 18... Bd7 {[%clk 0:02:11.5]} 19. Bg2 {[%clk
0:02:42.3]} 19... Be6 {[%clk 0:01:58.1]} 20. Bg7 {[%clk 0:02:40.5]} 20... f5
{[%clk 0:01:56.8]} 21. e4 {[%clk 0:02:40.2]} 21... Rxd1 {[%clk 0:01:49.6]} 22.
Rxd1 {[%clk 0:02:42.1]} 22... Rd8 {[%clk 0:01:50.6]} 23. Rxd8+ {[%clk
0:02:39.7]} 23... Kxd8 {[%clk 0:01:50.9]} 24. exf5 {[%clk 0:02:41.4]} 24... gxf5
{[%clk 0:01:48.6]} 25. Bxb7 {[%clk 0:02:42.9]} 25... e4 {[%clk 0:01:48.3]} 26.
Ba6 {[%clk 0:02:36.8]} 26... Kd7 {[%clk 0:01:48.1]} 27. Bd4 {[%clk 0:02:36.2]}
27... Nb6 {[%clk 0:01:48.6]} 28. a4 {[%clk 0:02:36.9]} 28... Bc4 {[%clk
0:01:28.5]} 29. Bxb6 {[%clk 0:02:07.1]} 29... Bxa6 {[%clk 0:01:28.5]} 30. Bxa7
{[%clk 0:02:09]} 30... Be2 {[%clk 0:01:22.3]} 31. Kg2 {[%clk 0:02:06.7]} 31...
Kc6 {[%clk 0:01:21.8]} 32. Bd4 {[%clk 0:02:02.1]} 32... Bd1 {[%clk 0:01:17.8]}
33. a5 {[%clk 0:02:02.7]} 33... Kb5 {[%clk 0:01:18.2]} 34. Be5 {[%clk
0:02:04.3]} 34... Kxa5 {[%clk 0:01:15.1]} 35. Bxc7+ {[%clk 0:02:05.3]} 35... Kb5
{[%clk 0:01:15.9]} 36. Kf1 {[%clk 0:02:06.7]} 36... Kc4 {[%clk 0:01:16.2]} 37.
Ke1 {[%clk 0:02:08.1]} 37... Bg4 {[%clk 0:01:13.5]} 38. Kd2 {[%clk 0:02:09.5]}
38... h5 {[%clk 0:01:14.4]} 39. Be5 {[%clk 0:02:10]} 39... Bf3 {[%clk
0:01:15.5]} 40. Ke3 {[%clk 0:02:11.3]} 40... Bg4 {[%clk 0:01:16.9]} 41. Kf4
{[%clk 0:02:11.2]} 41... Kd3 {[%clk 0:01:18.1]} 42. Bd4 {[%clk 0:02:12.1]} 42...
Kc4 {[%clk 0:01:19.4]} 43. Ke3 {[%clk 0:02:07.6]} 43... Kb3 {[%clk 0:01:19.5]}
44. Bg7 {[%clk 0:02:07.5]} 44... Kc4 {[%clk 0:01:20.7]} 45. Bf6 {[%clk
0:02:09.1]} 45... Kb3 {[%clk 0:01:21.8]} 46. Kd4 {[%clk 0:02:10]} 46... Be2
{[%clk 0:01:21.1]} 47. Kd5 {[%clk 0:02:05.3]} 47... Bf1 {[%clk 0:01:12.8]} 48.
Bd4 {[%clk 0:00:59.4]} 48... Be2 {[%clk 0:01:11.6]} 49. c4 {[%clk 0:00:53.7]}
49... Bxc4+ {[%clk 0:01:12.4]} 50. Ke5 {[%clk 0:00:55.1]} 50... Bd3 {[%clk
0:01:06.4]} 51. Be3 {[%clk 0:00:53.3]} 51... Kc4 {[%clk 0:01:06.6]} 52. Kxf5
{[%clk 0:00:54.5]} 52... Kd5 {[%clk 0:01:05.3]} 53. g4 {[%clk 0:00:52.5]} 53...
hxg4 {[%clk 0:01:05.8]} 54. h5 {[%clk 0:00:54.4]} 54... Bc4 {[%clk 0:00:08.6]}
55. h6 {[%clk 0:00:55.3]} 55... Kd6 {[%clk 0:00:10.3]} 56. h7 {[%clk 0:00:56.2]}
1-0

[Event "*** Titled Tuesday Blitz"]
[Site "Chess.com"]
[Date "2019.03.05"]
[Round "6"]
[White "Doraemon7"]
[Black "StoreySniper"]
[Result "1-0"]
[WhiteElo "2602"]
[BlackElo "2375"]
[TimeControl "180+2"]
[EndTime "14:26:34 PST"]
[Termination "Doraemon7 won by resignation"]

1. Nf3 {[%clk 0:03:01.9]} 1... g6 {[%clk 0:03:00.3]} 2. g3 {[%clk 0:03:01.8]}
2... Bg7 {[%clk 0:02:55.9]} 3. Bg2 {[%clk 0:03:02.6]} 3... c5 {[%clk 0:02:54.8]}
4. c4 {[%clk 0:02:59]} 4... Nc6 {[%clk 0:02:54.5]} 5. O-O {[%clk 0:02:47.5]}
5... e6 {[%clk 0:02:44.5]} 6. Nc3 {[%clk 0:02:45.9]} 6... Nge7 {[%clk
0:02:09.2]} 7. d4 {[%clk 0:02:19.5]} 7... cxd4 {[%clk 0:02:00]} 8. Nb5 {[%clk
0:02:20.4]} 8... d5 {[%clk 0:01:58.9]} 9. cxd5 {[%clk 0:02:16.6]} 9... Nxd5
{[%clk 0:01:56.1]} 10. Nfxd4 {[%clk 0:02:12.2]} 10... Nxd4 {[%clk 0:01:54.5]}
11. Nxd4 {[%clk 0:02:14.1]} 11... O-O {[%clk 0:01:42.9]} 12. Nb3 {[%clk
0:01:59]} 12... Bd7 {[%clk 0:01:33.9]} 13. Rb1 {[%clk 0:01:43.9]} 13... Ba4
{[%clk 0:01:21.5]} 14. Bd2 {[%clk 0:01:10]} 14... Qe7 {[%clk 0:01:13.5]} 15. e4
{[%clk 0:01:07.5]} 15... Nb4 {[%clk 0:01:09]} 16. Ra1 {[%clk 0:00:26.2]} 16...
Rfd8 {[%clk 0:00:59.9]} 17. Qe2 {[%clk 0:00:23.6]} 17... Nxa2 {[%clk 0:00:51.7]}
18. Na5 {[%clk 0:00:17.9]} 18... a6 {[%clk 0:00:13.3]} 19. Rxa2 {[%clk
0:00:18.8]} 19... Bb5 {[%clk 0:00:14.6]} 20. Qe1 {[%clk 0:00:17.2]} 20... Bxf1
{[%clk 0:00:13.6]} 21. Bxf1 {[%clk 0:00:19.1]} 21... Rac8 {[%clk 0:00:11.3]} 22.
e5 {[%clk 0:00:14.6]} 22... Qd7 {[%clk 0:00:11.6]} 23. Bc3 {[%clk 0:00:14.1]}
23... Qd5 {[%clk 0:00:12.7]} 24. Ra1 {[%clk 0:00:12.7]} 24... b6 {[%clk
0:00:12.7]} 25. Bg2 {[%clk 0:00:10.5]} 25... Qb5 {[%clk 0:00:12.4]} 26. Nb7
{[%clk 0:00:11.7]} 26... Rxc3 {[%clk 0:00:07.8]} 27. bxc3 {[%clk 0:00:08.4]}
27... Rb8 {[%clk 0:00:06.2]} 28. Rb1 {[%clk 0:00:04.2]} 28... Qxe5 {[%clk
0:00:06]} 29. Qxe5 {[%clk 0:00:04.4]} 29... Bxe5 {[%clk 0:00:07.9]} 30. Rxb6
{[%clk 0:00:05.4]} 30... Bxc3 {[%clk 0:00:08.9]} 31. Rxa6 {[%clk 0:00:06.8]}
31... e5 {[%clk 0:00:07.7]} 32. Rd6 {[%clk 0:00:06.9]} 32... Bd4 {[%clk
0:00:09]} 33. Rd8+ {[%clk 0:00:08.3]} 33... Rxd8 {[%clk 0:00:10.3]} 34. Nxd8
{[%clk 0:00:10.2]} 34... Kf8 {[%clk 0:00:10.2]} 35. Bd5 {[%clk 0:00:11.5]} 35...
f5 {[%clk 0:00:10.8]} 36. Ne6+ {[%clk 0:00:12.9]} 36... Ke7 {[%clk 0:00:11.3]}
37. Nxd4 {[%clk 0:00:14.8]} 37... exd4 {[%clk 0:00:10.7]} 38. Kf1 {[%clk
0:00:14.8]} 38... h6 {[%clk 0:00:09.6]} 39. f4 {[%clk 0:00:13.5]} 39... Kd6
{[%clk 0:00:10.8]} 40. Bf3 {[%clk 0:00:13.3]} 40... g5 {[%clk 0:00:10.7]} 41.
Ke2 {[%clk 0:00:14.5]} 41... g4 {[%clk 0:00:11.7]} 42. Bg2 {[%clk 0:00:15.3]}
42... Kc5 {[%clk 0:00:12.6]} 43. Kd3 {[%clk 0:00:17.2]} 43... Kd6 {[%clk
0:00:11.9]} 44. Kxd4 {[%clk 0:00:18]} 44... Ke6 {[%clk 0:00:13.8]} 45. Kc5
{[%clk 0:00:19.6]} 45... Kf6 {[%clk 0:00:15.6]} 46. Kd5 {[%clk 0:00:21.5]} 46...
Kg6 {[%clk 0:00:17]} 47. Ke5 {[%clk 0:00:23.4]} 47... Kh5 {[%clk 0:00:18.7]} 48.
Bh1 {[%clk 0:00:18.2]} 48... Kg6 {[%clk 0:00:20]} 49. Bd5 {[%clk 0:00:19.1]}
49... Kh5 {[%clk 0:00:21.7]} 50. Be6 {[%clk 0:00:20.1]} 50... Kg6 {[%clk
0:00:22]} 51. Bd7 {[%clk 0:00:19.9]} 51... Kg7 {[%clk 0:00:20.8]} 52. Kxf5
{[%clk 0:00:21]} 52... h5 {[%clk 0:00:22.6]} 53. Kg5 {[%clk 0:00:22.6]} 1-0